bitfinex/quotes_BTCUSD_20250127
["timestamp","ask_amount","ask_price","bid_price","bid_amount"]
[1737971232166,7.9e-07,99223.0,99222.0,1.93670469]
[1737971232577,7.9e-07,99223.0,99222.0,1.96131868]
[1737971233018,7.9e-07,99223.0,99222.0,1.93970469]
[1737971234067,7.9e-07,99223.0,99222.0,1.95130469]
[1737971234284,7.9e-07,99223.0,99222.0,0.45130469]
[1737971234696,7.9e-07,99223.0,99222.0,1.95130469]
[1737971235144,7.9e-07,99223.0,99222.0,0.41670469]
[1737971235694,7.9e-07,99223.0,99222.0,0.3193574]
[1737971235901,7.9e-07,99223.0,99222.0,0.1693574]
[1737971236131,7.9e-07,99223.0,99222.0,0.1643574]
[1737971236340,7.9e-07,99223.0,99222.0,0.1613574]
[1737971236572,7.9e-07,99223.0,99222.0,0.3133574]
[1737971236774,7.9e-07,99223.0,99222.0,0.1633574]
[1737971236979,7.9e-07,99223.0,99222.0,0.1643574]
[1737971237348,7.9e-07,99223.0,99222.0,0.1653574]
[1737971238389,7.9e-07,99223.0,99222.0,0.1623574]
[1737971238603,7.9e-07,99223.0,99222.0,0.1643574]
[1737971238796,7.9e-07,99223.0,99222.0,0.1633574]
[1737971239123,7.9e-07,99223.0,99222.0,0.1643574]
[1737971239472,7.9e-07,99223.0,99222.0,0.1633574]
[1737971239883,7.9e-07,99223.0,99222.0,0.1623574]
[1737971240706,7.9e-07,99223.0,99222.0,1.66436512]
[1737971240956,7.9e-07,99223.0,99222.0,1.6633574]
[1737971241209,0.08100079,99223.0,99222.0,1.653176]
[1737971241443,0.31260079,99223.0,99222.0,0.152176]
[1737971241902,0.31260079,99223.0,99222.0,0.153176]
[1737971242139,0.31260079,99223.0,99222.0,0.152176]
[1737971242595,0.31260079,99223.0,99222.0,0.001]
[1737971242815,0.47132,99223.0,99222.0,0.001]
[1737971243015,0.37018653,99223.0,99222.0,0.001]
[1737971243418,0.081,99222.0,99190.0,0.14897123]
[1737971243632,0.38653382,99223.0,99160.0,0.14897123]
[1737971243633,0.14897123,99220.0,99160.0,0.14897123]
[1737971243838,0.278911,99199.0,99160.0,0.14897123]
[1737971244073,0.56115829,99199.0,99184.0,0.201644]
[1737971244289,0.58002003,99199.0,99184.0,0.201644]
[1737971244490,0.58002003,99199.0,99189.0,0.151225]
[1737971244695,0.58002003,99199.0,99184.0,0.201644]
[1737971244903,0.58002003,99199.0,99198.0,0.00329715]
[1737971245109,0.56115829,99199.0,99198.0,0.01029715]
[1737971245315,0.5687035,99199.0,99198.0,0.00329715]
[1737971245740,0.5687035,99199.0,99198.0,0.00429715]
[1737971246335,0.5687035,99199.0,99198.0,0.00129715]
[1737971246756,0.5687035,99199.0,99198.0,0.00229715]
[1737971247345,0.58750752,99199.0,99198.0,0.00229715]
[1737971248421,0.58750752,99199.0,99198.0,0.00129715]
[1737971248824,0.58850752,99199.0,99198.0,0.00129715]
[1737971249527,0.58850752,99199.0,99198.0,0.00029715]
[1737971250809,0.69927113,99199.0,99198.0,0.00029715]
[1737971251018,0.0467,99189.0,99150.0,0.14897123]
[1737971251227,0.151241,99179.0,99171.0,0.151253]
[1737971251463,0.09734729,99178.0,99171.0,0.151253]
[1737971251668,0.151246,99176.0,99169.0,0.151255]
[1737971251876,0.081,99174.0,99170.0,0.151254]
[1737971252081,0.081,99174.0,99171.0,0.151253]
[1737971252293,0.081,99174.0,99172.0,0.151252]
[1737971253176,0.083,99174.0,99172.0,0.151252]
[1737971254349,0.083,99174.0,99167.0,0.00014782]
[1737971254350,0.0467,99172.0,99167.0,0.00014782]
[1737971254553,0.151258,99168.0,99167.0,0.00014782]
[1737971254726,0.51210529,99168.0,99167.0,0.00014782]
[1737971254939,0.6723689,99168.0,99167.0,0.00014782]
[1737971255623,0.67986438,99168.0,99167.0,0.00014782]
[1737971255821,0.69858894,99168.0,99167.0,0.00014782]
[1737971256990,0.69958894,99168.0,99167.0,0.00014782]
[1737971257203,0.68086438,99168.0,99167.0,0.00014782]
[1737971257399,0.68186438,99168.0,99167.0,0.00014782]
[1737971258025,0.53060638,99168.0,99167.0,0.00014782]
[1737971258587,0.68186438,99168.0,99167.0,0.00014782]
[1737971259016,0.68086438,99168.0,99167.0,0.00014782]
[1737971259222,0.68486438,99168.0,99167.0,0.00014782]
[1737971260408,0.68466437,99168.0,99167.0,0.00014782]
[1737971261227,0.67716889,99168.0,99167.0,0.00014782]
[1737971261636,0.68464898,99168.0,99167.0,0.00044518]
[1737971262862,0.68464898,99168.0,99167.0,0.0002574]
[1737971265534,0.68444898,99168.0,99167.0,0.0002574]
[1737971269172,0.69435908,99168.0,99167.0,0.0002574]
[1737971269587,2.08175908,99168.0,99167.0,0.0002574]
[1737971269784,2.08175908,99168.0,99157.0,0.0001416]
[1737971269785,0.428673,99158.0,99157.0,0.0001416]
[1737971269966,0.52602029,99158.0,99157.0,0.0001416]
[1737971271428,0.56638929,99158.0,99157.0,0.0001416]
[1737971271604,0.59638929,99158.0,99157.0,0.0001416]
[1737971271777,0.60386938,99158.0,99157.0,0.0001416]
[1737971271978,0.60386938,99158.0,99157.0,0.0011416]
[1737971271979,0.58386938,99158.0,99157.0,0.0011416]
[1737971272577,0.58378104,99158.0,99157.0,0.0011416]
[1737971272814,0.58378104,99158.0,99157.0,0.0001416]
[1737971273025,0.60378104,99158.0,99157.0,0.0001416]
[1737971273221,0.58578104,99158.0,99157.0,0.0001416]
[1737971274480,2.08544464,99158.0,99157.0,0.0001416]
[1737971275159,2.10844464,99158.0,99157.0,0.0001416]
[1737971276545,2.07544464,99158.0,99157.0,0.0001416]
[1737971276747,1.88507564,99158.0,99157.0,0.0001416]
[1737971277149,2.03507564,99158.0,99157.0,0.0001416]
[1737971279893,1.88507564,99158.0,99157.0,0.0001416]
[1737971280099,1.76767764,99158.0,99157.0,0.0001416]
[1737971280440,0.41200464,99158.0,99157.0,0.0001416]
[1737971280650,0.56327764,99158.0,99157.0,0.0001416]
[1737971280784,0.64547764,99158.0,99157.0,0.0001416]
[1737971280969,0.69367764,99158.0,99157.0,0.0001416]
[1737971281605,0.85367764,99158.0,99157.0,0.0001416]
[1737971282519,0.151305,99138.0,99125.0,0.201764]
[1737971282724,0.39261089,99137.0,99130.0,0.00049259]
[1737971283050,0.2952636,99137.0,99136.0,0.151307]
[1737971283431,0.18449999,99157.0,99156.0,0.151276]
[1737971283605,0.39261089,99157.0,99148.0,0.201717]
[1737971283755,0.39261089,99157.0,99147.0,0.15129]
[1737971283756,0.09734729,99156.0,99147.0,0.15129]
[1737971283966,0.09734729,99156.0,99130.0,0.09139601]
[1737971284162,0.151282,99153.0,99130.0,0.09139601]
[1737971284371,0.09734729,99152.0,99148.0,0.151288]
[1737971284599,0.24863029,99152.0,99135.0,0.201745]
[1737971284799,0.09734729,99152.0,99132.0,0.201751]
[1737971285002,0.09734729,99152.0,99130.0,0.09139601]
[1737971285444,0.00754381,99151.0,99130.0,0.09139601]
[1737971285575,0.09734729,99150.0,99148.0,0.151288]
[1737971285998,0.09734729,99150.0,99141.0,0.201731]
[1737971286222,0.09734729,99150.0,99130.0,0.09139601]
[1737971286223,0.09734729,99150.0,99131.0,0.201751]
[1737971286452,0.151289,99148.0,99143.0,0.151296]
[1737971286717,0.09734729,99147.0,99143.0,0.151296]
[1737971287206,0.09734729,99147.0,99141.0,0.151299]
[1737971287866,0.151292,99146.0,99141.0,0.151299]
[1737971288104,0.09734729,99145.0,99142.0,0.151297]
[1737971288502,0.11621176,99145.0,99142.0,0.151297]
[1737971288938,0.11621176,99145.0,99131.0,0.201751]
[1737971289141,0.11621176,99145.0,99143.0,0.151295]
[1737971289293,0.2952636,99144.0,99143.0,0.151296]
[1737971289501,0.4001547,99144.0,99143.0,0.151296]
[1737971289697,0.41901917,99144.0,99143.0,0.151296]
[1737971290104,0.32167188,99144.0,99143.0,0.151296]
[1737971290468,0.32167188,99144.0,99143.0,0.234096]
[1737971290699,0.32467188,99144.0,99143.0,0.234096]
[1737971291060,0.30280741,99144.0,99143.0,0.283796]
[1737971291265,0.30480741,99144.0,99143.0,0.433796]
[1737971291683,0.30480741,99144.0,99143.0,0.44366233]
[1737971292544,0.30280741,99144.0,99143.0,0.44366233]
[1737971292751,0.30280741,99144.0,99143.0,0.44466233]
[1737971292949,0.30280741,99144.0,99143.0,0.44666233]
[1737971293253,0.30280741,99144.0,99143.0,0.44466233]
[1737971293454,0.30280741,99144.0,99143.0,0.44666233]
[1737971294397,0.2952636,99144.0,99143.0,0.44666233]
[1737971295197,0.2952636,99144.0,99143.0,0.16416233]
[1737971300527,0.0001417,99158.0,99143.0,0.16416233]
[1737971300528,0.18449999,99157.0,99156.0,0.151276]
[1737971300735,0.18449999,99157.0,99156.0,0.52282329]
[1737971301113,0.18449999,99157.0,99156.0,2.02282329]
[1737971301311,0.16432999,99157.0,99156.0,2.04582329]
[1737971301555,7e-07,99158.0,99157.0,0.324275]
[1737971301762,7e-07,99158.0,99157.0,0.50002229]
[1737971302138,7e-07,99158.0,99157.0,0.379675]
[1737971302537,7e-07,99158.0,99157.0,0.229675]
[1737971303566,7e-07,99158.0,99157.0,0.235675]
[1737971303768,7e-07,99158.0,99157.0,0.238675]
[1737971306042,7e-07,99158.0,99157.0,0.50902229]
[1737971306591,8e-07,99168.0,99167.0,0.301259]
[1737971306880,8e-07,99168.0,99167.0,2.05050629]
[1737971307084,8.4e-07,99181.0,99180.0,0.30124]
[1737971307300,8.4e-07,99181.0,99180.0,0.42158729]
[1737971307505,8.4e-07,99188.0,99187.0,0.324229]
[1737971307713,8.4e-07,99188.0,99187.0,0.49747629]
[1737971307917,8.546e-05,99188.0,99187.0,0.49747629]
[1737971308235,4.6e-07,99188.0,99187.0,1.09556629]
[1737971308443,4.6e-07,99188.0,99187.0,0.54457629]
[1737971308881,4.6e-07,99188.0,99187.0,0.5547816]
[1737971309586,4.6e-07,99188.0,99187.0,2.0607816]
[1737971310010,4.6e-07,99188.0,99187.0,2.0547816]
[1737971310253,4.6e-07,99188.0,99187.0,2.0627816]
[1737971310591,4.6e-07,99188.0,99187.0,2.0547816]
[1737971311215,4.6e-07,99188.0,99187.0,0.5547816]
[1737971311448,4.6e-07,99188.0,99187.0,0.5577816]
[1737971311958,4.6e-07,99188.0,99187.0,0.5547816]
[1737971312180,4.6e-07,99188.0,99187.0,0.5677816]
[1737971313754,4.6e-07,99188.0,99187.0,0.2947816]
[1737971314007,4.6e-07,99188.0,99187.0,0.3062616]
[1737971314424,4.6e-07,99188.0,99187.0,0.4562616]
[1737971314825,4.6e-07,99188.0,99187.0,0.4522616]
[1737971315137,4.6e-07,99188.0,99187.0,0.4462616]
[1737971315713,0.00100046,99188.0,99187.0,0.4522616]
[1737971316176,0.00100046,99188.0,99187.0,0.4492616]
[1737971316352,4.6e-07,99188.0,99187.0,0.4432616]
[1737971316694,0.00100046,99188.0,99187.0,0.4492616]
[1737971318248,0.00100046,99188.0,99187.0,0.4522616]
[1737971318995,0.00100046,99188.0,99187.0,0.4292616]
[1737971319215,0.00100046,99188.0,99187.0,0.4522616]
[1737971319698,0.00100046,99188.0,99187.0,1.9522616]
[1737971322585,0.00100046,99188.0,99187.0,0.4522616]
[1737971322754,0.00100046,99188.0,99187.0,0.44955896]
[1737971322960,0.00014206,99188.0,99187.0,1.94355896]
[1737971323334,0.00114206,99188.0,99187.0,1.95255896]
[1737971323489,0.00114206,99188.0,99187.0,1.96255896]
[1737971323490,6e-08,99188.0,99187.0,1.96255896]
[1737971323690,6e-08,99188.0,99187.0,2.07825896]
[1737971324094,6e-08,99188.0,99187.0,2.09825896]
[1737971324845,6e-07,99199.0,99198.0,0.151212]
[1737971325034,6e-07,99199.0,99198.0,0.30221982]
[1737971325233,6e-07,99199.0,99198.0,0.42155929]
[1737971326016,6e-07,99199.0,99198.0,0.42455929]
[1737971327074,6e-07,99199.0,99198.0,0.43444743]
[1737971327887,6e-07,99199.0,99198.0,1.93944743]
[1737971331761,6e-07,99199.0,99198.0,0.43944743]
[1737971332410,6e-07,99199.0,99198.0,1.93944743]
[1737971334061,6e-07,99199.0,99198.0,0.43944743]
[1737971334528,6e-07,99199.0,99198.0,1.93944743]
[1737971335693,6e-07,99199.0,99198.0,1.95092743]
[1737971336634,6e-07,99199.0,99198.0,1.95122479]
[1737971338296,6e-07,99199.0,99198.0,0.43974479]
[1737971338414,6e-07,99199.0,99198.0,0.3193975]
[1737971339011,6e-07,99199.0,99198.0,0.41674479]
[1737971339594,6e-07,99199.0,99198.0,0.91674479]
[1737971339814,6e-07,99199.0,99198.0,0.91174479]
[1737971340163,6e-07,99199.0,99198.0,0.90874479]
[1737971340367,6e-07,99199.0,99198.0,0.91074479]
[1737971341171,6e-07,99199.0,99198.0,0.94511164]
[1737971341390,6e-07,99199.0,99198.0,0.94211164]
[1737971341815,6e-07,99199.0,99198.0,0.94711164]
[1737971342014,6e-07,99199.0,99198.0,0.96811164]
[1737971342221,6e-07,99199.0,99198.0,0.96311164]
[1737971342552,6e-07,99199.0,99198.0,2.46811164]
[1737971342781,6e-07,99199.0,99198.0,2.46311164]
[1737971343179,6e-07,99199.0,99198.0,2.46811164]
[1737971343540,6e-07,99199.0,99198.0,2.47011164]
[1737971343940,6e-07,99199.0,99198.0,2.46811164]
[1737971344336,6e-07,99199.0,99198.0,2.47011164]
[1737971344532,6e-07,99199.0,99198.0,2.46511164]
[1737971344830,6e-07,99199.0,99198.0,2.47011164]
[1737971345215,6e-07,99199.0,99198.0,2.46611164]
[1737971345416,6e-07,99199.0,99198.0,2.47311164]
[1737971345786,6e-07,99199.0,99198.0,2.46611164]
[1737971346192,6e-07,99199.0,99198.0,2.47311164]
[1737971346400,6e-07,99199.0,99198.0,2.46311164]
[1737971346773,6e-07,99199.0,99198.0,2.46611164]
[1737971347193,6e-07,99199.0,99198.0,0.96611164]
[1737971347404,6e-07,99199.0,99198.0,0.96311164]
[1737971347623,6e-07,99199.0,99198.0,2.46611164]
[1737971348153,6e-07,99199.0,99198.0,2.47011164]
[1737971348312,6e-07,99199.0,99198.0,2.51171164]
[1737971348541,6e-07,99199.0,99198.0,2.52271164]
[1737971350370,0.06349078,99223.0,99222.0,0.151176]
[1737971350574,0.00014892,99223.0,99222.0,0.42152329]
[1737971351187,0.00014892,99223.0,99222.0,1.92152329]
[1737971352439,0.00014892,99223.0,99222.0,1.92252329]
[1737971352641,0.00014892,99223.0,99222.0,1.801176]
[1737971352855,0.07904892,99223.0,99222.0,0.301176]
[1737971353062,0.07904892,99223.0,99222.0,0.312179]
[1737971353276,0.12694892,99223.0,99222.0,0.162179]
[1737971353489,0.19043891,99223.0,99222.0,0.152176]
[1737971354542,0.19043891,99223.0,99222.0,0.151176]
[1737971354743,0.19143891,99223.0,99222.0,0.151176]
[1737971355078,0.21030959,99223.0,99222.0,0.151176]
[1737971355459,0.21030959,99223.0,99222.0,0.154176]
[1737971356177,0.20930959,99223.0,99222.0,0.151176]
[1737971356387,0.19043891,99223.0,99222.0,0.152176]
[1737971357006,0.19043891,99223.0,99222.0,0.151176]
[1737971357326,0.06363891,99223.0,99222.0,0.151176]
[1737971357525,0.00014892,99223.0,99222.0,0.24952329]
[1737971357934,0.00014892,99223.0,99222.0,0.27152329]
[1737971358160,0.00014892,99223.0,99222.0,0.27352329]
[1737971358574,0.00014892,99223.0,99222.0,0.42252329]
[1737971358904,0.00014892,99223.0,99222.0,0.42352329]
[1737971359536,0.00014892,99223.0,99222.0,1.92252329]
[1737971359943,9.2e-07,99223.0,99222.0,1.95387426]
[1737971361164,5.2e-07,99223.0,99222.0,1.95287426]
[1737971361376,5.2e-07,99223.0,99222.0,1.95487426]
[1737971361579,5.2e-07,99223.0,99222.0,1.95887426]
[1737971363417,5.2e-07,99223.0,99222.0,1.97031426]
[1737971366598,2.2e-07,99231.0,99230.0,0.301163]
[1737971366751,2.2e-07,99231.0,99230.0,0.42151029]
[1737971367975,2.2e-07,99231.0,99230.0,0.42351029]
[1737971369064,2.2e-07,99231.0,99230.0,0.42451029]
[1737971369880,2.2e-07,99231.0,99230.0,0.304163]
[1737971370953,2.2e-07,99231.0,99230.0,0.31419474]
[1737971374405,2.2e-07,99231.0,99230.0,0.43454203]
[1737971375275,2.2e-07,99231.0,99230.0,1.93454203]
[1737971376451,0.04949736,99257.0,99230.0,1.93454203]
[1737971376452,0.00029736,99257.0,99251.0,0.15]
[1737971376656,0.00079102,99253.0,99252.0,0.27147729]
[1737971377059,0.00079102,99253.0,99252.0,1.77147729]
[1737971377514,0.00079102,99253.0,99252.0,0.27147729]
[1737971377996,0.00079102,99253.0,99252.0,1.77147729]
[1737971378592,0.00079102,99253.0,99252.0,1.77447729]
[1737971379280,0.00079102,99253.0,99252.0,1.78445573]
[1737971379794,0.00079102,99253.0,99252.0,1.78145573]
[1737971380215,0.00079102,99253.0,99252.0,1.78245573]
[1737971380620,0.00079102,99253.0,99252.0,0.16210844]
[1737971380621,0.08379102,99253.0,99252.0,0.16210844]
[1737971381272,0.13369102,99253.0,99252.0,0.001]
[1737971381474,0.13895386,99253.0,99252.0,0.15213]
[1737971381907,0.13895386,99253.0,99252.0,0.15513]
[1737971382108,0.13895386,99253.0,99252.0,0.15213]
[1737971382283,0.13895386,99253.0,99252.0,0.15113]
[1737971382544,0.13895386,99253.0,99252.0,0.15413]
[1737971382705,0.13895386,99253.0,99252.0,0.15513]
[1737971382904,0.13895386,99253.0,99252.0,0.15213]
[1737971383107,0.13895386,99253.0,99252.0,0.15113]
[1737971383558,0.13995386,99253.0,99252.0,0.15113]
[1737971384066,0.13895386,99253.0,99252.0,0.15113]
[1737971385020,0.13895386,99253.0,99252.0,0.16128033]
[1737971385639,0.13995386,99253.0,99252.0,0.16128033]
[1737971386077,0.13895386,99253.0,99252.0,0.16128033]
[1737971387141,0.06985386,99253.0,99252.0,0.16128033]
[1737971387582,0.06985386,99253.0,99252.0,0.25862762]
[1737971388228,0.06985386,99253.0,99252.0,1.75862762]
[1737971388429,0.00605386,99253.0,99252.0,0.25862762]
[1737971388645,0.00605386,99253.0,99252.0,0.25962762]
[1737971388865,0.00029736,99257.0,99253.0,0.64507414]
[1737971389029,0.0004458,99254.0,99253.0,0.64507414]
[1737971390179,0.0004458,99254.0,99253.0,0.79507414]
[1737971390977,0.0004458,99254.0,99253.0,0.89242143]
[1737971391480,0.0004458,99254.0,99253.0,0.89342143]
[1737971393045,0.0004458,99254.0,99253.0,0.79607414]
[1737971393461,0.0004458,99254.0,99253.0,0.64607414]
[1737971395359,0.0004458,99254.0,99253.0,0.64507414]
[1737971395824,0.0004458,99254.0,99253.0,0.64607414]
[1737971401071,0.0799458,99254.0,99253.0,0.64607414]
[1737971401559,0.1917458,99254.0,99253.0,0.64607414]
[1737971402159,0.21058763,99254.0,99253.0,0.64607414]
[1737971402706,0.21058763,99254.0,99253.0,0.64507414]
[1737971403190,0.1917458,99254.0,99253.0,0.64507414]
[1737971403421,0.1927458,99254.0,99253.0,0.64507414]
[1737971403878,0.29009309,99254.0,99253.0,0.49394614]
[1737971404075,0.44122009,99254.0,99253.0,0.49394614]
[1737971404278,0.60127752,99254.0,99253.0,0.49394614]
[1737971404818,0.60127752,99254.0,99253.0,0.24121809]
[1737971405026,0.151162,99231.0,99230.0,0.00029715]
[1737971405226,0.42090929,99231.0,99230.0,0.00029715]
[1737971405565,0.151185,99216.0,99201.0,0.201609]
[1737971405747,0.24853229,99216.0,99203.0,0.151204]
[1737971405951,0.24853229,99216.0,99205.0,0.08939047]
[1737971405952,0.151186,99215.0,99205.0,0.08939047]
[1737971406106,0.0763,99213.0,99205.0,0.08939047]
[1737971406306,0.1512,99206.0,99205.0,0.08939047]
[1737971406535,0.4231109,99206.0,99205.0,0.08939047]
[1737971406738,0.44194254,99206.0,99205.0,0.08988413]
[1737971407171,0.151209,99200.0,99183.0,0.00984421]
[1737971407391,0.4231199,99200.0,99199.0,0.00044549]
[1737971407618,0.151227,99188.0,99175.0,0.201662]
[1737971407823,0.2719109,99188.0,99187.0,0.15152636]
[1737971408028,0.17456361,99188.0,99187.0,0.15152636]
[1737971409471,0.17456361,99188.0,99187.0,0.16778996]
[1737971409679,0.17456361,99188.0,99187.0,0.17078996]
[1737971409878,0.17456361,99188.0,99187.0,0.16478996]
[1737971410089,0.17456361,99188.0,99187.0,0.16778996]
[1737971410715,0.277888,99213.0,99187.0,0.01656096]
[1737971410716,0.0638,99207.0,99187.0,0.01656096]
[1737971410924,0.0638,99207.0,99206.0,0.1512]
[1737971413802,0.2081109,99207.0,99180.0,0.14927065]
[1737971414022,0.1261,99205.0,99179.0,0.201654]
[1737971414226,0.09734729,99204.0,99175.0,0.201662]
[1737971414639,0.09734729,99204.0,99150.0,0.14927065]
[1737971414640,0.151227,99188.0,99163.0,0.201687]
[1737971414842,0.09734729,99188.0,99148.0,0.201717]
[1737971415047,0.151251,99173.0,99163.0,8.462e-05]
[1737971415257,0.151253,99171.0,99164.0,0.151264]
[1737971415463,0.09734729,99170.0,99163.0,8.462e-05]
[1737971415677,0.2719109,99170.0,99163.0,8.462e-05]
[1737971415858,0.151264,99164.0,99163.0,8.462e-05]
[1737971416003,0.4231749,99164.0,99163.0,8.462e-05]
[1737971416845,0.4231749,99164.0,99163.0,0.00208462]
[1737971417227,0.4231749,99164.0,99163.0,8.462e-05]
[1737971418601,0.4231749,99164.0,99163.0,0.00208462]
[1737971418852,0.4231749,99164.0,99163.0,8.462e-05]
[1737971419197,0.4241749,99164.0,99163.0,8.462e-05]
[1737971419629,0.4251749,99164.0,99163.0,8.462e-05]
[1737971420010,0.4231749,99164.0,99163.0,8.462e-05]
[1737971420470,0.4261749,99164.0,99163.0,0.00038177]
[1737971422021,0.2749109,99164.0,99163.0,0.00038177]
[1737971422205,0.2749109,99164.0,99163.0,0.15164777]
[1737971422543,0.2749109,99164.0,99163.0,0.00038177]
[1737971422971,0.2729109,99164.0,99163.0,0.00038177]
[1737971423165,0.2719109,99164.0,99163.0,0.00038177]
[1737971423364,0.2719109,99164.0,99163.0,0.15164777]
[1737971424181,0.17556361,99164.0,99163.0,0.15164777]
[1737971424395,0.17456361,99164.0,99163.0,0.15164777]
[1737971424593,0.0638,99179.0,99178.0,0.151243]
[1737971424905,0.0638,99186.0,99185.0,0.151232]
[1737971425264,0.0638,99186.0,99169.0,0.14927065]
[1737971425265,0.0638,99203.0,99182.0,0.15]
[1737971425469,0.0638,99203.0,99202.0,0.151206]
[1737971426361,0.08979855,99204.0,99203.0,0.151205]
[1737971426938,0.08979855,99204.0,99190.0,0.151223]
[1737971426939,0.151212,99199.0,99190.0,0.151223]
[1737971427167,0.24856029,99198.0,99189.0,0.151225]
[1737971427440,0.24856029,99198.0,99165.0,0.1314]
[1737971427441,0.151215,99197.0,99185.0,0.151231]
[1737971427659,0.151222,99192.0,99179.0,0.201655]
[1737971427860,0.09734729,99192.0,99184.0,0.151233]
[1737971428866,0.09734729,99192.0,99178.0,8.462e-05]
[1737971429022,0.09834729,99192.0,99189.0,0.151225]
[1737971429447,0.09834729,99192.0,99180.0,0.14927065]
[1737971429448,0.09834729,99192.0,99183.0,0.201647]
[1737971429596,0.09834729,99192.0,99190.0,0.151223]
[1737971429751,0.09734729,99192.0,99183.0,0.201647]
[1737971429956,0.32576761,99204.0,99196.0,0.151215]
[1737971430165,0.001,99192.0,99191.0,0.151223]
[1737971430363,0.002,99192.0,99191.0,0.151223]
[1737971430626,0.001,99192.0,99191.0,0.151223]
[1737971430961,0.001,99192.0,99187.0,0.201637]
[1737971430962,0.001,99192.0,99188.0,0.151227]
[1737971431203,0.001,99192.0,99187.0,0.201637]
[1737971431410,0.001,99192.0,99188.0,0.201637]
[1737971431551,0.09734729,99203.0,99187.0,0.201637]
[1737971431776,0.0001416,99192.0,99187.0,0.201637]
[1737971431986,0.0001416,99192.0,99178.0,8.462e-05]
[1737971432174,0.0001416,99192.0,99191.0,0.151223]
[1737971433023,0.0001416,99192.0,99191.0,0.301223]
[1737971433227,0.0011416,99192.0,99191.0,0.301223]
[1737971434676,0.0001416,99192.0,99191.0,0.16144502]
[1737971434868,0.0001416,99192.0,99191.0,0.151223]
[1737971435074,0.0001416,99192.0,99187.0,0.151228]
[1737971435321,0.0001416,99192.0,99191.0,0.151223]
[1737971436094,0.0001416,99192.0,99191.0,0.154223]
[1737971436537,0.0001416,99192.0,99191.0,0.151223]
[1737971437503,0.0011416,99192.0,99191.0,0.151223]
[1737971437710,0.0649416,99192.0,99191.0,0.151223]
[1737971438894,0.0639416,99192.0,99182.0,0.201649]
[1737971439112,0.0649416,99192.0,99191.0,0.151223]
[1737971439345,0.0659416,99192.0,99191.0,0.151223]
[1737971439551,0.0639416,99192.0,99191.0,0.151223]
[1737971439977,0.0649416,99192.0,99191.0,0.151223]
[1737971440206,0.0639416,99192.0,99191.0,0.151223]
[1737971440422,0.0649416,99192.0,99191.0,0.151223]
[1737971441550,0.0649416,99192.0,99140.0,0.22364241]
[1737971441551,0.2730525,99192.0,99140.0,0.22364241]
[1737971441756,0.151241,99179.0,99169.0,0.151256]
[1737971441967,0.151241,99179.0,99171.0,0.151253]
[1737971442176,0.151238,99182.0,99176.0,0.151245]
[1737971442384,0.09734729,99181.0,99175.0,0.151247]
[1737971442591,0.09734729,99181.0,99163.0,0.00029715]
[1737971442592,0.29899929,99181.0,99163.0,0.00029715]
[1737971442797,0.151241,99179.0,99163.0,0.00029715]
[1737971443003,0.24858829,99179.0,99163.0,0.00029715]
[1737971443205,0.24858829,99179.0,99164.0,0.201685]
[1737971443409,0.24858829,99179.0,99168.0,0.151257]
[1737971443616,0.24858829,99179.0,99164.0,0.201685]
[1737971443820,0.09734729,99179.0,99172.0,0.201668]
[1737971444033,0.24858829,99179.0,99174.0,0.151248]
[1737971444242,0.24958829,99179.0,99174.0,0.151248]
[1737971444884,0.24958829,99179.0,99164.0,0.201685]
[1737971445107,0.25463148,99179.0,99163.0,0.00029715]
[1737971445530,0.25363148,99179.0,99165.0,0.151261]
[1737971445747,0.25363148,99179.0,99166.0,0.151261]
[1737971445969,0.25363148,99179.0,99163.0,0.15156215]
[1737971446322,0.25463148,99179.0,99164.0,0.151263]
[1737971446531,0.43019509,99179.0,99163.0,0.00029715]
[1737971446729,0.43019509,99179.0,99165.0,0.151262]
[1737971446948,0.43019509,99179.0,99168.0,0.151257]
[1737971447149,0.43019509,99179.0,99167.0,0.201678]
[1737971447571,0.43019509,99179.0,99168.0,0.151257]
[1737971447767,0.43019509,99179.0,99169.0,0.151255]
[1737971448678,0.27895409,99179.0,99172.0,0.201669]
[1737971448882,0.27895409,99179.0,99175.0,0.151247]
[1737971449040,0.27895409,99179.0,99172.0,0.201669]
[1737971449331,0.43019509,99179.0,99167.0,0.201678]
[1737971449552,0.43019509,99179.0,99173.0,0.151249]
[1737971449785,0.42819509,99179.0,99173.0,0.151249]
[1737971449996,0.42819509,99179.0,99167.0,0.201678]
[1737971450219,0.28195409,99179.0,99163.0,0.00018177]
[1737971450430,0.151244,99177.0,99171.0,0.151253]
[1737971450630,0.09734729,99176.0,99171.0,0.151253]
[1737971451092,0.09734729,99176.0,99164.0,0.201686]
[1737971451304,0.151252,99172.0,99166.0,0.15126]
[1737971451513,0.10239048,99176.0,99165.0,0.201684]
[1737971451945,0.10239048,99176.0,99167.0,0.201679]
[1737971452154,0.201663,99175.0,99163.0,0.00018177]
[1737971452367,0.11276361,99179.0,99163.0,0.20186777]
[1737971452580,0.151253,99172.0,99166.0,0.151261]
[1737971453006,0.09734729,99175.0,99163.0,0.20386777]
[1737971453007,0.151254,99171.0,99164.0,0.151264]
[1737971453218,0.151254,99171.0,99163.0,0.20486777]
[1737971453426,0.151257,99169.0,99163.0,0.20486777]
[1737971453668,0.151253,99172.0,99165.0,0.151261]
[1737971453881,0.003,99172.0,99163.0,0.20186777]
[1737971454096,0.01876307,99168.0,99167.0,0.151259]
[1737971454943,0.001,99171.0,99170.0,0.151255]
[1737971455997,0.11076361,99179.0,99168.0,0.201676]
[1737971456178,0.11076361,99179.0,99174.0,0.151249]
[1737971456374,0.11076361,99179.0,99168.0,0.201676]
[1737971456571,0.11076361,99179.0,99175.0,0.151247]
[1737971456792,0.01876994,99178.0,99175.0,0.151247]
[1737971456997,0.01876994,99178.0,99174.0,0.151248]
[1737971457136,0.01876994,99178.0,99175.0,0.151247]
[1737971457884,0.01876994,99177.0,99175.0,0.151247]
[1737971458087,0.01876994,99177.0,99176.0,0.151246]
[1737971459280,0.002,99178.0,99177.0,0.151244]
[1737971459525,0.001,99178.0,99177.0,0.151244]
[1737971459778,0.11076361,99179.0,99178.0,0.151243]
[1737971460358,0.11076361,99179.0,99176.0,0.151245]
[1737971460677,0.11076361,99179.0,99173.0,0.201665]
[1737971460885,0.11076361,99179.0,99178.0,0.151243]
[1737971461905,0.0001416,99187.0,99178.0,0.197]
[1737971462265,0.0001416,99187.0,99186.0,0.380631]
[1737971462471,0.0001416,99187.0,99186.0,0.47797829]
[1737971463864,0.0011416,99187.0,99186.0,0.47797829]
[1737971464446,0.0021416,99187.0,99186.0,0.47797829]
[1737971464638,0.0011416,99187.0,99186.0,0.47797829]
[1737971464827,0.0001416,99187.0,99186.0,0.47797829]
[1737971465246,0.0001416,99187.0,99186.0,0.380631]
[1737971465700,0.0001416,99187.0,99186.0,0.301231]